[Event "Titled Tuesday Blitz August 1 Early 2023"]
[White "Rozhkov, Viacheslav"]
[Black "Nurgaliyeva, Zarina"]
[WhiteFideId "4181484"]
[BlackFideId "13730096"]
[WhiteElo "2423"]
[BlackElo "2591"]
[Result "1-0"]
[Round "3"]
[TimeControl "180+1"]
[Date "2023.08.01"]
[WhiteClock "0:00:12"]
[BlackClock "0:00:00"]
[Board "135"]

1. e4 {[%clk 0:03:00]}  e5 {[%clk 0:03:00]} 2. Nf3 {[%clk 0:03:01]}  Nc6 {[%clk 0:03:00]} 3. d4 {[%clk 0:03:01]}  exd4 {[%clk 0:03:00]} 4. Bc4 {[%clk 0:03:02]}  Bc5 {[%clk 0:02:54]} 5. c3 {[%clk 0:03:02]}  Nf6 {[%clk 0:02:54]} 6. e5 {[%clk 0:03:02]}  d5 {[%clk 0:02:55]} 7. Bb5 {[%clk 0:03:03]}  Ne4 {[%clk 0:02:56]} 8. cxd4 {[%clk 0:03:03]}  Bb6 {[%clk 0:02:56]} 9. Nc3 {[%clk 0:03:04]}  O-O {[%clk 0:02:56]} 10. Be3 {[%clk 0:03:04]}  f5 {[%clk 0:02:29]} 11. exf6 {[%clk 0:03:03]}  Nxf6 {[%clk 0:02:25]} 12. Bxc6 {[%clk 0:03:03]}  bxc6 {[%clk 0:02:25]} 13. Ne5 {[%clk 0:03:04]}  Qd6 {[%clk 0:02:20]} 14. O-O {[%clk 0:03:04]}  Ba5 {[%clk 0:02:05]} 15. Rc1 {[%clk 0:02:59]}  Bd7 {[%clk 0:02:00]} 16. Na4 {[%clk 0:02:50]}  Bb6 {[%clk 0:01:53]} 17. Qc2 {[%clk 0:02:33]}  Ng4 {[%clk 0:01:34]} 18. Nxg4 {[%clk 0:02:23]}  Bxg4 {[%clk 0:01:35]} 19. Qxc6 {[%clk 0:01:56]}  Qd8 {[%clk 0:01:03]} 20. h3 {[%clk 0:01:40]}  Bf5 {[%clk 0:00:55]} 21. Nc3 {[%clk 0:01:38]}  Bd3 {[%clk 0:00:43]} 22. Rfd1 {[%clk 0:01:34]}  Bf5 {[%clk 0:00:19]} 23. Qxd5+ {[%clk 0:01:27]}  Qxd5 {[%clk 0:00:16]} 24. Nxd5 {[%clk 0:01:28]}  Be6 {[%clk 0:00:15]} 25. Nxc7 {[%clk 0:01:20]}  Bxc7 {[%clk 0:00:14]} 26. Rxc7 {[%clk 0:01:21]}  Bxa2 {[%clk 0:00:14]} 27. Ra1 {[%clk 0:01:20]}  Bd5 {[%clk 0:00:13]} 28. Raxa7 {[%clk 0:01:20]}  Rxa7 {[%clk 0:00:14]} 29. Rxa7 {[%clk 0:01:20]}  Rb8 {[%clk 0:00:14]} 30. Bf4 {[%clk 0:01:11]}  Rxb2 {[%clk 0:00:12]} 31. Be5 {[%clk 0:01:11]}  g6 {[%clk 0:00:09]} 32. Rg7+ {[%clk 0:01:10]}  Kf8 {[%clk 0:00:09]} 33. Rxh7 {[%clk 0:01:11]}  Rb1+ {[%clk 0:00:09]} 34. Kh2 {[%clk 0:01:10]}  Rb2 {[%clk 0:00:10]} 35. Kg3 {[%clk 0:01:11]}  Rb3+ {[%clk 0:00:11]} 36. f3 {[%clk 0:00:51]}  Re3 {[%clk 0:00:05]} 37. Rd7 {[%clk 0:00:44]}  Bc4 {[%clk 0:00:04]} 38. h4 {[%clk 0:00:39]}  Re2 {[%clk 0:00:03]} 39. Rd8+ {[%clk 0:00:29]}  Ke7 {[%clk 0:00:02]} 40. Rc8 {[%clk 0:00:26]}  Bb5 {[%clk 0:00:02]} 41. Rc7+ {[%clk 0:00:26]}  Ke6 {[%clk 0:00:02]} 42. Rg7 {[%clk 0:00:25]}  Kf5 {[%clk 0:00:02]} 43. Rf7+ {[%clk 0:00:24]}  Ke6 {[%clk 0:00:02]} 44. Rf6+ {[%clk 0:00:25]}  Ke7 {[%clk 0:00:03]} 45. Rxg6 {[%clk 0:00:26]}  Rd2 {[%clk 0:00:03]} 46. Rg7+ {[%clk 0:00:26]}  Kf8 {[%clk 0:00:03]} 47. Rc7 {[%clk 0:00:25]}  Bf1 {[%clk 0:00:03]} 48. Kf4 {[%clk 0:00:20]}  Bxg2 {[%clk 0:00:02]} 49. h5 {[%clk 0:00:20]}  Rd3 {[%clk 0:00:00]} 50. h6 {[%clk 0:00:12]} 1-0


[Site "https://www.chess.com"]

[Event "Titled Tuesday Blitz August 1 Early 2023"]
[White "Lana Rodriguez, David"]
[Black "Diaz Herquinio, Brahian"]
[WhiteFideId "2270803"]
[BlackFideId "3809480"]
[WhiteElo "2584"]
[BlackElo "2417"]
[Result "1-0"]
[Round "3"]
[TimeControl "180+1"]
[Date "2023.08.01"]
[WhiteClock "0:02:51"]
[BlackClock "0:01:15"]
[Board "138"]

1. e4 {[%clk 0:03:00]}  c5 {[%clk 0:02:58]} 2. Nf3 {[%clk 0:03:01]}  d6 {[%clk 0:02:58]} 3. d4 {[%clk 0:03:01]}  cxd4 {[%clk 0:02:59]} 4. Qxd4 {[%clk 0:03:01]}  Nc6 {[%clk 0:02:59]} 5. Qe3 {[%clk 0:03:01]}  Nf6 {[%clk 0:02:39]} 6. Be2 {[%clk 0:03:01]}  a6 {[%clk 0:02:33]} 7. O-O {[%clk 0:03:00]}  e6 {[%clk 0:02:29]} 8. Rd1 {[%clk 0:03:00]}  Qc7 {[%clk 0:02:28]} 9. h3 {[%clk 0:02:59]}  Be7 {[%clk 0:02:28]} 10. c4 {[%clk 0:03:00]}  O-O {[%clk 0:02:27]} 11. b3 {[%clk 0:03:00]}  b6 {[%clk 0:02:17]} 12. Bb2 {[%clk 0:02:59]}  Bb7 {[%clk 0:02:12]} 13. Nc3 {[%clk 0:02:59]}  Rab8 {[%clk 0:02:07]} 14. Rac1 {[%clk 0:03:00]}  Ba8 {[%clk 0:01:42]} 15. Nd5 {[%clk 0:02:55]}  exd5 {[%clk 0:01:17]} 16. cxd5 {[%clk 0:02:56]}  Qd7 {[%clk 0:01:15]} 17. dxc6 {[%clk 0:02:55]}  Bxc6 {[%clk 0:01:15]} 18. e5 {[%clk 0:02:51]} 1-0


[Site "https://www.chess.com"]

[Event "Titled Tuesday Blitz August 1 Early 2023"]
[White "robertoalejandro10"]
[Black "Bogaudinov, Rushan"]
[BlackFideId "4129288"]
[WhiteElo "2582"]
[BlackElo "2415"]
[Result "0-1"]
[Round "3"]
[TimeControl "180+1"]
[Date "2023.08.01"]
[WhiteClock "0:00:01"]
[BlackClock "0:00:17"]
[Board "142"]

1. Nf3 {[%clk 0:03:00]}  d5 {[%clk 0:03:00]} 2. c4 {[%clk 0:02:54]}  c6 {[%clk 0:02:57]} 3. b3 {[%clk 0:02:53]}  g6 {[%clk 0:02:56]} 4. Bb2 {[%clk 0:02:53]}  Nf6 {[%clk 0:02:56]} 5. g3 {[%clk 0:02:54]}  Bg7 {[%clk 0:02:56]} 6. Bg2 {[%clk 0:02:54]}  O-O {[%clk 0:02:57]} 7. O-O {[%clk 0:02:54]}  a5 {[%clk 0:02:55]} 8. d3 {[%clk 0:02:53]}  Nbd7 {[%clk 0:02:50]} 9. a3 {[%clk 0:02:52]}  Re8 {[%clk 0:02:47]} 10. Ne5 {[%clk 0:02:25]}  Nxe5 {[%clk 0:02:44]} 11. Bxe5 {[%clk 0:02:24]}  Bf5 {[%clk 0:02:37]} 12. Nd2 {[%clk 0:02:22]}  Qd7 {[%clk 0:02:29]} 13. Qc2 {[%clk 0:02:13]}  Bh3 {[%clk 0:02:28]} 14. Qb2 {[%clk 0:02:10]}  Bxg2 {[%clk 0:02:20]} 15. Kxg2 {[%clk 0:02:11]}  dxc4 {[%clk 0:02:11]} 16. bxc4 {[%clk 0:02:09]}  b5 {[%clk 0:02:11]} 17. Rfc1 {[%clk 0:02:04]}  h5 {[%clk 0:02:09]} 18. h4 {[%clk 0:02:01]}  Rec8 {[%clk 0:01:56]} 19. Rab1 {[%clk 0:02:00]}  Qg4 {[%clk 0:01:51]} 20. Nf3 {[%clk 0:01:52]}  Qd7 {[%clk 0:01:33]} 21. cxb5 {[%clk 0:01:34]}  cxb5 {[%clk 0:01:34]} 22. Rxc8+ {[%clk 0:01:34]}  Rxc8 {[%clk 0:01:28]} 23. Qxb5 {[%clk 0:01:33]}  Qxb5 {[%clk 0:01:14]} 24. Rxb5 {[%clk 0:01:33]}  Rc2 {[%clk 0:01:10]} 25. Nd4 {[%clk 0:01:25]}  Ra2 {[%clk 0:01:10]} 26. Rxa5 {[%clk 0:01:24]}  Ng4 {[%clk 0:01:05]} 27. Ra8+ {[%clk 0:01:17]}  Kh7 {[%clk 0:01:05]} 28. Bxg7 {[%clk 0:01:16]}  Kxg7 {[%clk 0:01:05]} 29. f3 {[%clk 0:00:48]}  Ne3+ {[%clk 0:00:45]} 30. Kf2 {[%clk 0:00:46]}  Nd1+ {[%clk 0:00:45]} 31. Ke1 {[%clk 0:00:44]}  Nc3 {[%clk 0:00:42]} 32. Rc8 {[%clk 0:00:22]}  Rxa3 {[%clk 0:00:39]} 33. Rc7 {[%clk 0:00:22]}  e5 {[%clk 0:00:37]} 34. Ne6+ {[%clk 0:00:19]}  Kf6 {[%clk 0:00:35]} 35. Ng5 {[%clk 0:00:19]}  e4 {[%clk 0:00:26]} 36. f4 {[%clk 0:00:16]}  Kf5 {[%clk 0:00:21]} 37. dxe4+ {[%clk 0:00:06]}  Kg4 {[%clk 0:00:21]} 38. Rxf7 {[%clk 0:00:05]}  Ra2 {[%clk 0:00:19]} 39. e5 {[%clk 0:00:05]}  Rxe2+ {[%clk 0:00:19]} 40. Kf1 {[%clk 0:00:06]}  Kxg3 {[%clk 0:00:18]} 41. e6 {[%clk 0:00:05]}  Rf2+ {[%clk 0:00:18]} 42. Ke1 {[%clk 0:00:05]}  Re2+ {[%clk 0:00:18]} 43. Kf1 {[%clk 0:00:05]}  Rf2+ {[%clk 0:00:17]} 44. Kg1 {[%clk 0:00:05]}  Ne2+ {[%clk 0:00:17]} 45. Kh1 {[%clk 0:00:01]}  Rf1# {[%clk 0:00:17]} 0-1


[Site "https://www.chess.com"]

[Event "Titled Tuesday Blitz August 1 Early 2023"]
[White "EsmeraldasAnderson03"]
[Black "Parpiev, Isaak"]
[BlackFideId "34281576"]
[WhiteElo "2414"]
[BlackElo "2580"]
[Result "1-0"]
[Round "3"]
[TimeControl "180+1"]
[Date "2023.08.01"]
[WhiteClock "0:00:14"]
[BlackClock "0:00:00"]
[Board "143"]

1. d4 {[%clk 0:02:56]}  Nf6 {[%clk 0:02:58]} 2. Nf3 {[%clk 0:02:54]}  g6 {[%clk 0:02:59]} 3. Bf4 {[%clk 0:02:53]}  Bg7 {[%clk 0:02:58]} 4. h3 {[%clk 0:02:54]}  O-O {[%clk 0:02:58]} 5. e3 {[%clk 0:02:54]}  c5 {[%clk 0:02:55]} 6. c3 {[%clk 0:02:51]}  b6 {[%clk 0:02:53]} 7. Nbd2 {[%clk 0:02:52]}  Bb7 {[%clk 0:02:54]} 8. Bh2 {[%clk 0:02:52]}  Nc6 {[%clk 0:02:54]} 9. Be2 {[%clk 0:02:53]}  d5 {[%clk 0:02:54]} 10. O-O {[%clk 0:02:52]}  Nd7 {[%clk 0:02:55]} 11. a4 {[%clk 0:02:48]}  a6 {[%clk 0:02:48]} 12. Qb3 {[%clk 0:02:46]}  e5 {[%clk 0:02:43]} 13. dxe5 {[%clk 0:02:45]}  Ndxe5 {[%clk 0:02:43]} 14. Nxe5 {[%clk 0:02:45]}  Nxe5 {[%clk 0:02:43]} 15. Rfd1 {[%clk 0:02:41]}  d4 {[%clk 0:01:55]} 16. cxd4 {[%clk 0:02:17]}  cxd4 {[%clk 0:01:47]} 17. exd4 {[%clk 0:02:17]}  Nc6 {[%clk 0:01:31]} 18. Nf3 {[%clk 0:02:17]}  Na5 {[%clk 0:01:30]} 19. Qe3 {[%clk 0:02:09]}  Re8 {[%clk 0:01:30]} 20. Qd3 {[%clk 0:01:49]}  Be4 {[%clk 0:01:29]} 21. Qc3 {[%clk 0:01:47]}  Rc8 {[%clk 0:01:18]} 22. Qa3 {[%clk 0:01:43]}  Bc2 {[%clk 0:01:11]} 23. Re1 {[%clk 0:01:38]}  Nb3 {[%clk 0:01:05]} 24. Bxa6 {[%clk 0:01:37]}  Nxa1 {[%clk 0:00:45]} 25. Rxe8+ {[%clk 0:01:30]}  Qxe8 {[%clk 0:00:45]} 26. Bxc8 {[%clk 0:01:31]}  Nb3 {[%clk 0:00:34]} 27. Ba6 {[%clk 0:00:45]}  Nxd4 {[%clk 0:00:00]} 28. Bf1 {[%clk 0:00:14]} 1-0


[Site "https://www.chess.com"]

[Event "Titled Tuesday Blitz August 1 Early 2023"]
[White "Fisabilillah, Ummi"]
[Black "Guz, Ari"]
[WhiteFideId "7104804"]
[BlackFideId "2825759"]
[WhiteElo "2404"]
[BlackElo "2574"]
[Result "0-1"]
[Round "3"]
[TimeControl "180+1"]
[Date "2023.08.01"]
[WhiteClock "0:00:16"]
[BlackClock "0:00:48"]
[Board "146"]

1. e4 {[%clk 0:02:59]}  e6 {[%clk 0:03:00]} 2. Nf3 {[%clk 0:02:51]}  d5 {[%clk 0:03:01]} 3. Nc3 {[%clk 0:02:48]}  Nf6 {[%clk 0:02:56]} 4. Qe2 {[%clk 0:02:39]}  d4 {[%clk 0:02:52]} 5. Nd1 {[%clk 0:02:38]}  c5 {[%clk 0:02:50]} 6. d3 {[%clk 0:02:37]}  Nc6 {[%clk 0:02:50]} 7. g3 {[%clk 0:02:36]}  e5 {[%clk 0:02:48]} 8. Bg2 {[%clk 0:02:36]}  h6 {[%clk 0:02:45]} 9. O-O {[%clk 0:02:37]}  Be6 {[%clk 0:02:45]} 10. a3 {[%clk 0:02:31]}  Qd7 {[%clk 0:02:43]} 11. Nh4 {[%clk 0:02:28]}  g6 {[%clk 0:02:36]} 12. f4 {[%clk 0:02:20]}  exf4 {[%clk 0:02:35]} 13. Rxf4 {[%clk 0:02:20]}  Ng4 {[%clk 0:02:27]} 14. Rf1 {[%clk 0:02:16]}  Bd6 {[%clk 0:02:21]} 15. Nf2 {[%clk 0:02:12]}  Nge5 {[%clk 0:01:53]} 16. Bd2 {[%clk 0:01:55]}  O-O-O {[%clk 0:01:50]} 17. b4 {[%clk 0:01:38]}  c4 {[%clk 0:01:48]} 18. b5 {[%clk 0:01:38]}  Ne7 {[%clk 0:01:46]} 19. Bb4 {[%clk 0:01:10]}  c3 {[%clk 0:01:27]} 20. Rfb1 {[%clk 0:01:07]}  h5 {[%clk 0:01:22]} 21. Nf3 {[%clk 0:00:56]}  Nxf3+ {[%clk 0:01:21]} 22. Qxf3 {[%clk 0:00:57]}  Be5 {[%clk 0:01:16]} 23. h4 {[%clk 0:00:30]}  Ng8 {[%clk 0:01:14]} 24. Ba5 {[%clk 0:00:25]}  Rf8 {[%clk 0:01:10]} 25. Rf1 {[%clk 0:00:25]}  Nf6 {[%clk 0:01:09]} 26. Bb4 {[%clk 0:00:24]}  Rd8 {[%clk 0:01:07]} 27. Nh1 {[%clk 0:00:24]}  Ng4 {[%clk 0:01:06]} 28. a4 {[%clk 0:00:22]}  Ne3 {[%clk 0:01:02]} 29. Rf2 {[%clk 0:00:23]}  f6 {[%clk 0:00:58]} 30. Qe2 {[%clk 0:00:22]}  Qc7 {[%clk 0:00:56]} 31. Kh2 {[%clk 0:00:18]}  g5 {[%clk 0:00:55]} 32. hxg5 {[%clk 0:00:18]}  h4 {[%clk 0:00:55]} 33. Kg1 {[%clk 0:00:17]}  fxg5 {[%clk 0:00:50]} 34. gxh4 {[%clk 0:00:16]}  Bh2# {[%clk 0:00:48]} 0-1


[Site "https://www.chess.com"]

[Event "Titled Tuesday Blitz August 1 Early 2023"]
[White "Bilan, Danila"]
[Black "Gauravthegm"]
[WhiteFideId "24161918"]
[WhiteElo "2572"]
[BlackElo "2386"]
[Result "1-0"]
[Round "3"]
[TimeControl "180+1"]
[Date "2023.08.01"]
[WhiteClock "0:00:19"]
[BlackClock "0:00:19"]
[Board "149"]

1. d4 {[%clk 0:03:00]}  Nf6 {[%clk 0:02:59]} 2. Nf3 {[%clk 0:03:01]}  c5 {[%clk 0:02:59]} 3. e3 {[%clk 0:03:01]}  e6 {[%clk 0:02:59]} 4. Bd3 {[%clk 0:03:01]}  d5 {[%clk 0:02:59]} 5. c3 {[%clk 0:02:59]}  Nc6 {[%clk 0:02:59]} 6. Nbd2 {[%clk 0:02:59]}  Qc7 {[%clk 0:02:58]} 7. O-O {[%clk 0:02:59]}  b6 {[%clk 0:02:55]} 8. e4 {[%clk 0:02:52]}  dxe4 {[%clk 0:02:49]} 9. Nxe4 {[%clk 0:02:50]}  Nxe4 {[%clk 0:02:47]} 10. Bxe4 {[%clk 0:02:49]}  Bb7 {[%clk 0:02:46]} 11. Qa4 {[%clk 0:02:30]}  Bd6 {[%clk 0:02:39]} 12. dxc5 {[%clk 0:01:56]}  Bxc5 {[%clk 0:02:37]} 13. Bf4 {[%clk 0:01:56]}  Bd6 {[%clk 0:02:18]} 14. Bxd6 {[%clk 0:01:35]}  Qxd6 {[%clk 0:02:18]} 15. Rad1 {[%clk 0:01:28]}  Qc7 {[%clk 0:02:10]} 16. Ne5 {[%clk 0:01:27]}  Rc8 {[%clk 0:01:43]} 17. f4 {[%clk 0:00:56]}  f6 {[%clk 0:01:15]} 18. Rd7 {[%clk 0:00:51]}  fxe5 {[%clk 0:01:15]} 19. Rxc7 {[%clk 0:00:50]}  Rxc7 {[%clk 0:01:15]} 20. fxe5 {[%clk 0:00:47]}  Rf8 {[%clk 0:01:07]} 21. Rxf8+ {[%clk 0:00:40]}  Kxf8 {[%clk 0:01:07]} 22. Bxh7 {[%clk 0:00:35]}  Rd7 {[%clk 0:01:01]} 23. Qf4+ {[%clk 0:00:32]}  Ke7 {[%clk 0:01:01]} 24. Be4 {[%clk 0:00:29]}  Kd8 {[%clk 0:00:47]} 25. h4 {[%clk 0:00:26]}  Kc7 {[%clk 0:00:45]} 26. h5 {[%clk 0:00:26]}  a5 {[%clk 0:00:42]} 27. g4 {[%clk 0:00:25]}  Rd1+ {[%clk 0:00:40]} 28. Kh2 {[%clk 0:00:24]}  Re1 {[%clk 0:00:28]} 29. g5 {[%clk 0:00:20]}  Re2+ {[%clk 0:00:27]} 30. Kg3 {[%clk 0:00:19]}  Rxb2 {[%clk 0:00:26]} 31. h6 {[%clk 0:00:18]}  gxh6 {[%clk 0:00:26]} 32. gxh6 {[%clk 0:00:19]}  Rxa2 {[%clk 0:00:24]} 33. h7 {[%clk 0:00:19]}  Ra4 {[%clk 0:00:19]} 34. h8=Q {[%clk 0:00:19]} 1-0


[Site "https://www.chess.com"]

[Event "Titled Tuesday Blitz August 1 Early 2023"]
[White "Silva, Pedro Gil Ferreira Da"]
[Black "The_Sherman_Variation"]
[WhiteFideId "1946102"]
[WhiteElo "2379"]
[BlackElo "2564"]
[Result "1-0"]
[Round "3"]
[TimeControl "180+1"]
[Date "2023.08.01"]
[WhiteClock "0:01:14"]
[BlackClock "0:00:34"]
[Board "151"]

1. e4 {[%clk 0:03:00]}  g5 {[%clk 0:02:43]} 2. d4 {[%clk 0:02:57]}  h6 {[%clk 0:02:42]} 3. Nc3 {[%clk 0:02:56]}  d6 {[%clk 0:02:42]} 4. h4 {[%clk 0:02:52]}  gxh4 {[%clk 0:02:39]} 5. Rxh4 {[%clk 0:02:53]}  Bg7 {[%clk 0:02:38]} 6. Nf3 {[%clk 0:02:52]}  Nc6 {[%clk 0:02:35]} 7. Be3 {[%clk 0:02:51]}  e5 {[%clk 0:02:34]} 8. dxe5 {[%clk 0:02:51]}  Nxe5 {[%clk 0:02:33]} 9. Nxe5 {[%clk 0:02:51]}  Qxh4 {[%clk 0:02:30]} 10. Nd5 {[%clk 0:02:48]}  Qd8 {[%clk 0:02:19]} 11. Nd3 {[%clk 0:02:45]}  c6 {[%clk 0:02:17]} 12. N5f4 {[%clk 0:02:45]}  Ne7 {[%clk 0:02:15]} 13. Qh5 {[%clk 0:02:44]}  a5 {[%clk 0:02:09]} 14. O-O-O {[%clk 0:02:39]}  a4 {[%clk 0:02:10]} 15. a3 {[%clk 0:02:39]}  Qa5 {[%clk 0:02:09]} 16. Be2 {[%clk 0:02:29]}  Qxh5 {[%clk 0:02:07]} 17. Nxh5 {[%clk 0:02:30]}  O-O {[%clk 0:02:05]} 18. g4 {[%clk 0:02:28]}  Ng6 {[%clk 0:02:03]} 19. f4 {[%clk 0:02:28]}  Re8 {[%clk 0:01:59]} 20. Nf2 {[%clk 0:02:15]}  d5 {[%clk 0:01:54]} 21. e5 {[%clk 0:02:14]}  b6 {[%clk 0:01:46]} 22. Bxb6 {[%clk 0:02:14]}  Rb8 {[%clk 0:01:24]} 23. Bd4 {[%clk 0:02:13]}  Nf8 {[%clk 0:01:02]} 24. Nxg7 {[%clk 0:01:57]}  Kxg7 {[%clk 0:01:03]} 25. f5 {[%clk 0:01:55]}  Nh7 {[%clk 0:00:59]} 26. Nd3 {[%clk 0:01:51]}  Ng5 {[%clk 0:00:57]} 27. Nf4 {[%clk 0:01:51]}  Kh7 {[%clk 0:00:56]} 28. Nh5 {[%clk 0:01:50]}  Rd8 {[%clk 0:00:55]} 29. Bd3 {[%clk 0:01:49]}  Ra8 {[%clk 0:00:50]} 30. Rh1 {[%clk 0:01:38]}  Ba6 {[%clk 0:00:49]} 31. Nf6+ {[%clk 0:01:37]}  Kg7 {[%clk 0:00:49]} 32. e6 {[%clk 0:01:29]}  fxe6 {[%clk 0:00:47]} 33. Ne4+ {[%clk 0:01:19]}  Kg8 {[%clk 0:00:43]} 34. Nxg5 {[%clk 0:01:16]}  hxg5 {[%clk 0:00:43]} 35. fxe6 {[%clk 0:01:16]}  Kf8 {[%clk 0:00:34]} 36. Bf6 {[%clk 0:01:14]} 1-0


[Site "https://www.chess.com"]

[Event "Titled Tuesday Blitz August 1 Early 2023"]
[White "Kuzmin, Roman"]
[Black "Han, Yichen"]
[WhiteFideId "44134932"]
[BlackFideId "1054430"]
[WhiteElo "2560"]
[BlackElo "2377"]
[Result "1-0"]
[Round "3"]
[TimeControl "180+1"]
[Date "2023.08.01"]
[WhiteClock "0:00:03"]
[BlackClock "0:00:02"]
[Board "152"]

1. e4 {[%clk 0:03:00]}  c6 {[%clk 0:02:55]} 2. d4 {[%clk 0:02:59]}  g6 {[%clk 0:02:55]} 3. h4 {[%clk 0:02:58]}  d5 {[%clk 0:02:54]} 4. e5 {[%clk 0:02:58]}  h5 {[%clk 0:02:53]} 5. c4 {[%clk 0:02:56]}  Bf5 {[%clk 0:02:52]} 6. Nc3 {[%clk 0:02:56]}  e6 {[%clk 0:02:48]} 7. Nf3 {[%clk 0:02:44]}  Bh6 {[%clk 0:02:39]} 8. Bg5 {[%clk 0:02:39]}  Bxg5 {[%clk 0:02:37]} 9. Nxg5 {[%clk 0:02:40]}  Nh6 {[%clk 0:02:33]} 10. Be2 {[%clk 0:02:33]}  Nd7 {[%clk 0:02:26]} 11. cxd5 {[%clk 0:01:57]}  exd5 {[%clk 0:02:20]} 12. Qd2 {[%clk 0:01:49]}  Nf8 {[%clk 0:01:57]} 13. O-O {[%clk 0:01:31]}  Ne6 {[%clk 0:01:56]} 14. Nf3 {[%clk 0:01:24]}  Ng4 {[%clk 0:01:52]} 15. b4 {[%clk 0:01:24]}  O-O {[%clk 0:01:45]} 16. b5 {[%clk 0:01:25]}  c5 {[%clk 0:01:45]} 17. dxc5 {[%clk 0:01:22]}  d4 {[%clk 0:01:45]} 18. Na4 {[%clk 0:01:20]}  d3 {[%clk 0:01:44]} 19. Bd1 {[%clk 0:01:20]}  Nd4 {[%clk 0:01:41]} 20. Nxd4 {[%clk 0:01:15]}  Qxd4 {[%clk 0:01:42]} 21. Bxg4 {[%clk 0:01:10]}  Qxg4 {[%clk 0:01:37]} 22. Nc3 {[%clk 0:01:03]}  Qxh4 {[%clk 0:01:29]} 23. Nd5 {[%clk 0:01:02]}  Kg7 {[%clk 0:01:21]} 24. Rac1 {[%clk 0:00:50]}  Qd4 {[%clk 0:01:18]} 25. Ne3 {[%clk 0:00:44]}  Qxe5 {[%clk 0:01:17]} 26. Rfe1 {[%clk 0:00:42]}  Qf6 {[%clk 0:01:13]} 27. c6 {[%clk 0:00:36]}  bxc6 {[%clk 0:01:11]} 28. Rxc6 {[%clk 0:00:35]}  Qg5 {[%clk 0:01:03]} 29. Rc5 {[%clk 0:00:34]}  Qf6 {[%clk 0:00:52]} 30. Nxf5+ {[%clk 0:00:33]}  gxf5 {[%clk 0:00:53]} 31. Qxd3 {[%clk 0:00:34]}  Rae8 {[%clk 0:00:47]} 32. Rxe8 {[%clk 0:00:08]}  Rxe8 {[%clk 0:00:47]} 33. Rxf5 {[%clk 0:00:05]}  Re1+ {[%clk 0:00:15]} 34. Kh2 {[%clk 0:00:06]}  Qa1 {[%clk 0:00:09]} 35. Qg3+ {[%clk 0:00:02]}  Kf8 {[%clk 0:00:05]} 36. Qd6+ {[%clk 0:00:02]}  Ke8 {[%clk 0:00:04]} 37. Qb8+ {[%clk 0:00:01]}  Ke7 {[%clk 0:00:03]} 38. Qc7+ {[%clk 0:00:01]}  Ke6 {[%clk 0:00:02]} 39. Qxf7+ {[%clk 0:00:02]}  Kd6 {[%clk 0:00:02]} 40. Rd5# {[%clk 0:00:03]} 1-0


[Site "https://www.chess.com"]

[Event "Titled Tuesday Blitz August 1 Early 2023"]
[White "Buscar, Michael"]
[Black "Pinero Rodriguez, Carlos Jose"]
[WhiteFideId "2603616"]
[BlackFideId "3901726"]
[WhiteElo "2376"]
[BlackElo "2559"]
[Result "1-0"]
[Round "3"]
[TimeControl "180+1"]
[Date "2023.08.01"]
[WhiteClock "0:00:04"]
[BlackClock "0:00:52"]
[Board "153"]

1. d4 {[%clk 0:03:00]}  Nf6 {[%clk 0:02:56]} 2. c4 {[%clk 0:03:00]}  e6 {[%clk 0:02:54]} 3. Nc3 {[%clk 0:02:59]}  Bb4 {[%clk 0:02:51]} 4. e3 {[%clk 0:02:59]}  b6 {[%clk 0:02:51]} 5. Bd3 {[%clk 0:02:58]}  Bb7 {[%clk 0:02:50]} 6. Nf3 {[%clk 0:02:59]}  O-O {[%clk 0:02:49]} 7. O-O {[%clk 0:02:59]}  Bxc3 {[%clk 0:02:50]} 8. bxc3 {[%clk 0:02:58]}  d6 {[%clk 0:02:50]} 9. Nd2 {[%clk 0:02:52]}  Nbd7 {[%clk 0:02:50]} 10. e4 {[%clk 0:02:52]}  e5 {[%clk 0:02:49]} 11. f3 {[%clk 0:02:49]}  c5 {[%clk 0:02:48]} 12. Bb2 {[%clk 0:02:47]}  Qe7 {[%clk 0:02:47]} 13. Qe2 {[%clk 0:02:42]}  Rac8 {[%clk 0:02:47]} 14. Rf2 {[%clk 0:02:30]}  Ba6 {[%clk 0:02:45]} 15. d5 {[%clk 0:02:25]}  Nh5 {[%clk 0:02:43]} 16. g3 {[%clk 0:02:24]}  g6 {[%clk 0:02:43]} 17. Nf1 {[%clk 0:02:24]}  Ng7 {[%clk 0:02:40]} 18. Bc1 {[%clk 0:02:21]}  h5 {[%clk 0:02:34]} 19. a4 {[%clk 0:02:07]}  Kh7 {[%clk 0:02:29]} 20. a5 {[%clk 0:02:07]}  Ra8 {[%clk 0:02:29]} 21. axb6 {[%clk 0:02:02]}  axb6 {[%clk 0:02:30]} 22. Ne3 {[%clk 0:01:58]}  Bb7 {[%clk 0:02:28]} 23. Qb2 {[%clk 0:01:53]}  Rxa1 {[%clk 0:02:27]} 24. Qxa1 {[%clk 0:01:52]}  Ra8 {[%clk 0:02:27]} 25. Ra2 {[%clk 0:01:53]}  Qd8 {[%clk 0:02:28]} 26. Rxa8 {[%clk 0:01:30]}  Qxa8 {[%clk 0:02:29]} 27. Qxa8 {[%clk 0:01:29]}  Bxa8 {[%clk 0:02:27]} 28. Bc2 {[%clk 0:01:30]}  Bb7 {[%clk 0:02:21]} 29. Ba4 {[%clk 0:01:29]}  Nb8 {[%clk 0:02:17]} 30. Bb5 {[%clk 0:01:24]}  Bc8 {[%clk 0:02:16]} 31. Kg2 {[%clk 0:01:21]}  f5 {[%clk 0:02:15]} 32. Nd1 {[%clk 0:01:09]}  Bd7 {[%clk 0:02:05]} 33. Bg5 {[%clk 0:01:07]}  Ne8 {[%clk 0:02:00]} 34. Bd8 {[%clk 0:01:03]}  Bxb5 {[%clk 0:01:59]} 35. cxb5 {[%clk 0:01:03]}  Nd7 {[%clk 0:01:56]} 36. c4 {[%clk 0:00:59]}  Kg7 {[%clk 0:01:45]} 37. Nc3 {[%clk 0:00:58]}  Kf7 {[%clk 0:01:41]} 38. Na4 {[%clk 0:00:55]}  Nef6 {[%clk 0:01:40]} 39. exf5 {[%clk 0:00:48]}  gxf5 {[%clk 0:01:40]} 40. Bxb6 {[%clk 0:00:33]}  e4 {[%clk 0:01:35]} 41. fxe4 {[%clk 0:00:28]}  Nxe4 {[%clk 0:01:34]} 42. Bc7 {[%clk 0:00:24]}  Nd2 {[%clk 0:01:27]} 43. Nb2 {[%clk 0:00:19]}  Kf6 {[%clk 0:01:14]} 44. b6 {[%clk 0:00:18]}  Ke5 {[%clk 0:01:14]} 45. b7 {[%clk 0:00:18]}  Kd4 {[%clk 0:01:14]} 46. Bxd6 {[%clk 0:00:18]}  Nxc4 {[%clk 0:01:12]} 47. Nxc4 {[%clk 0:00:16]}  Kxc4 {[%clk 0:01:13]} 48. b8=Q {[%clk 0:00:16]}  Nxb8 {[%clk 0:01:12]} 49. Bxb8 {[%clk 0:00:16]}  Kxd5 {[%clk 0:01:13]} 50. Kf3 {[%clk 0:00:17]}  c4 {[%clk 0:01:12]} 51. Bf4 {[%clk 0:00:16]}  c3 {[%clk 0:01:07]} 52. Bc1 {[%clk 0:00:16]}  Ke5 {[%clk 0:01:06]} 53. Ke3 {[%clk 0:00:17]}  h4 {[%clk 0:01:00]} 54. Kd3 {[%clk 0:00:15]}  h3 {[%clk 0:00:58]} 55. Kxc3 {[%clk 0:00:13]}  Ke4 {[%clk 0:00:58]} 56. Kc4 {[%clk 0:00:07]}  Kf3 {[%clk 0:00:58]} 57. Bf4 {[%clk 0:00:04]}  Kg2 {[%clk 0:00:57]} 58. g4 {[%clk 0:00:04]}  Kf3 {[%clk 0:00:51]} 59. gxf5 {[%clk 0:00:03]}  Kxf4 {[%clk 0:00:51]} 60. f6 {[%clk 0:00:03]}  Kf3 {[%clk 0:00:52]} 61. f7 {[%clk 0:00:04]}  Kg2 {[%clk 0:00:53]} 62. f8=Q {[%clk 0:00:04]}  Kxh2 {[%clk 0:00:54]} 63. Qf1 {[%clk 0:00:04]}  Kg3 {[%clk 0:00:52]} 64. Qh1 {[%clk 0:00:04]}  h2 {[%clk 0:00:52]} 65. Kd3 {[%clk 0:00:04]} 1-0


[Site "https://www.chess.com"]